Cogmind - Beta 15 @@@ ROGUE MODE // 2025.07.10 @ 20:52:40 Player: cogginmymind Result: Self-destructed Performance ------------- Evolutions (2) 1000 Regions Visited (4) 800 Robots Destroyed (20) 100 Value Destroyed (530) 530 Prototype IDs (1) 20 Alien Tech Used (0) 0 Bonus (0) 0 TOTAL SCORE: 2450 Bonus ------- None Cogmind --------- Core Integrity 550/550 Matter 254/500 Energy 400/400 System Corruption 0% Temperature Cool (0) Movement Walking (190) Ox1 Location -8/Materials Parts ------- > --- POWER (3) -------- Ion Engine Ion Engine > --- PROPULSION (2) --- Aluminum Leg Aluminum Leg > --- UTILITY (3) ------ Heat Sink High-capacity Matter Pod Terrain Scanner > --- WEAPON (3) ------- Improved Medium Laser Rocket Launcher > --- INVENTORY (5) ---- Cooling System Medium Matter Pod (39) Faulty Advanced Beam Cannon Heavy Assault Rifle Peak State ------------ > --- POWER ------------ Ion Engine Ion Engine > --- PROPULSION ------- Aluminum Leg Aluminum Leg > --- UTILITY ---------- Cooling System High-capacity Matter Pod Terrain Scanner > --- WEAPON ----------- Improved Medium Laser Light Assault Rifle > --- INVENTORY -------- Ion Engine Heat Sink Heat Sink Medium Matter Pod Rocket Launcher [Rating: 12] Favorites ----------- Power Ion Engine Engine Ion Engine Propulsion Aluminum Leg Leg Aluminum Leg Wheel Wheel Utility Terrain Scanner Device Terrain Scanner Storage Medium Matter Pod Protection Light Armor Plating Weapon Light Assault Rifle Energy Gun Medium Laser Ballistic Gun Light Assault Rifle Launcher Rocket Launcher Build | -11 -10 -10 -9 -8 ------- Run | Yrd Mat Min Mat Mat Slots Evolved 4 | . . . 2 2 Power 2 | . . . 1 1 Propulsion . | . . . . . Utility 1 | . . . 1 . Weapon 1 | . . . . 1 Parts Attached 27 | 9 2 6 10 . Power 4 | 2 . 1 1 . Engine 4 | 2 . 1 1 . Core . | . . . . . Reactor . | . . . . . Propulsion 7 | 4 . 1 2 . Treads . | . . . . . Leg 4 | 2 . . 2 . Wheel 3 | 2 . 1 . . Hover . | . . . . . Flight . | . . . . . Utility 9 | 1 2 2 4 . Device 6 | 1 1 1 3 . Storage 2 | . . 1 1 . Processor . | . . . . . Hackware . | . . . . . Protection 1 | . 1 . . . Artifact . | . . . . . Weapon 7 | 2 . 2 3 . Energy Gun 2 | 1 . . 1 . Energy Cannon . | . . . . . Ballistic Gun 4 | 1 . 2 1 . Ballistic Cannon . | . . . . . Launcher 1 | . . . 1 . Special Weapon . | . . . . . Impact Weapon . | . . . . . Slashing Weapon . | . . . . . Piercing Weapon . | . . . . . Special Melee Weapon . | . . . . . Unidentified Prototypes 1 | . . . 1 . Parts Lost 5 | . . 4 1 . Power 1 | . . . 1 . Propulsion 1 | . . 1 . . Utility 2 | . . 2 . . Weapon 1 | . . 1 . . Highest Loss Streak 3 | . . 3 1 . To Critical Strikes . | . . . . . Average Backups 3 | 2 4 2 3 4 Power 1 | . 1 1 . . Propulsion . | 1 2 . . . Utility . | . . . 1 2 Weapon . | . . . 1 2 Tool/Special . | . . . . . Unused Backups 3 | . 2 1 . . Power 1 | . . 1 . . Propulsion . | . . . . . Utility 1 | . 1 . . . Weapon 1 | . 1 . . . Tool/Special . | . . . . . Average Slot Usage (%) 92 | . 91 96 89 73 Engine 14 | . 14 14 16 14 Leg 17 | . . 20 22 18 Wheel 8 | . 28 7 . . Device 14 | . 14 12 17 18 Storage 8 | . . 10 11 9 Protection 2 | . 6 3 . . Energy Gun 6 | . 14 3 7 9 Ballistic Gun 17 | . 14 22 13 . Peak Build Rating 12 | 6 7 7 12 12 Average Rating 7 | 3 6 6 9 11 On Entrance 5 | . 6 7 7 9 Naked Turns . | . . . . . Heaviest Build 23 | 10 13 13 22 23 Greatest Support 20 | 20 20 20 20 20 Greatest Overweight (x) 1 | . . . 1 1 Average Overweight (x) . | . . . . . Largest Inventory Capacity 5 | 5 5 5 5 5 Average Capacity 5 | 5 5 5 5 5 Most Carried 5 | 5 5 5 5 5 Average Carried 3 | 2 4 3 3 4 Final Capacity 5 | 5 5 5 5 5 Final Carried 5 | 4 5 5 5 4 Class Distribution -------------------- 62% | Scavenger-Mutant 37% | Mutant Dominant Class ---------------- Mutant | -10/Materials Scavenger-Mutant | -10/Mines Scavenger-Mutant | -9/Materials Scavenger-Mutant | -8/Materials Resources | -11 -10 -10 -9 -8 ----------- Run | Yrd Mat Min Mat Mat Matter Collected 763 | 302 45 225 191 . Remotely . | . . . . . Salvage Created 496 | 44 56 150 246 . Parts 37 | 5 7 5 20 . Haulers Intercepted . | . . . . . Recyclers Shooed 2 | . 1 1 . . Parts Field Recycled . | . . . . . Retrieved Matter . | . . . . . Parts Self-Destructed . | . . . . . Prevented . | . . . . . Kills | -11 -10 -10 -9 -8 ------- Run | Yrd Mat Min Mat Mat Combat Hostiles Destroyed 19 | 1 3 7 8 . Guns 18 | 1 3 7 7 . AOE 1 | . . . 1 . Classes Destroyed 7 | 2 2 2 1 . Tunneler 1 | 1 . . . . Watcher 1 | . 1 . . . Swarmer 8 | . 3 3 2 . Grunt 7 | 1 . 2 4 . Sentry 2 | . . . 2 . Demolisher 1 | . . 1 . . Assembled 1 | . . 1 . . Best Kill Streak 3 | 2 3 3 3 . Combat Bots Only 3 | 1 3 3 3 . Max Kills in Single Turn 2 | 1 1 1 2 . Gunslinging 1 | . . . 1 . Exploded 1 | . . . 1 . Melee . | . . . . . Uniques/NPCs Destroyed . | . . . . . Combat | -11 -10 -10 -9 -8 -------- Run | Yrd Mat Min Mat Mat Hostile Shots Fired 131 | 4 13 41 73 . Missed 48 | 1 2 13 32 . Hits 83 | 3 11 28 41 . Projectile 83 | 3 11 28 41 . AOE 3 | . . 3 . . Critical Strikes 2 | . 1 . 1 . Damage Taken 1045 | 33 97 390 525 . Core 178 | . . 67 111 . Absorbed by Shields . | . . . . . Core Remaining (%) 81 | 100 . 73 72 . Volleys Fired 74 | 4 11 23 36 . Largest 2 | 2 2 2 2 . Hottest 79 | 70 70 70 79 . Shots Fired 136 | 8 22 37 69 . Gun 133 | 8 22 37 66 . Cannon . | . . . . . Launcher 3 | . . . 3 . Special . | . . . . . Kinetic 88 | 4 11 26 47 . Thermal 45 | 4 11 11 19 . Explosive 3 | . . . 3 . Electromagnetic . | . . . . . Robot Hit Streak 24 | 2 3 4 24 . Robot Miss Streak 4 | 2 3 4 4 . Penetration Max . | . . . . . Secondary Targets 3 | . 1 1 1 . Max Gunslinging Chain 1 | . 1 1 1 . Shots Hit Robots 75 | 3 10 19 43 . Core Hits 38 | 3 5 14 16 . Critical Kills 1 | . . . 1 . Critical Parts Destroyed . | . . . . . Critical Strikes 3 | . 1 1 1 . Burn 2 | . 1 1 . . Destroy 1 | . . . 1 . Melee Attacks . | . . . . . Impact . | . . . . . Slashing . | . . . . . Piercing . | . . . . . Sneak Attacks . | . . . . . Combat Hostiles . | . . . . . Follow-up Attacks . | . . . . . Damage Inflicted 977 | 40 137 229 571 . Guns 822 | 40 137 229 416 . Cannons . | . . . . . Explosions 155 | . . . 155 . Melee . | . . . . . Ramming . | . . . . . Kinetic 496 | 15 62 143 276 . Thermal 326 | 25 75 86 140 . Explosive 155 | . . . 155 . Electromagnetic . | . . . . . Impact . | . . . . . Slashing . | . . . . . Piercing . | . . . . . Highest Corruption . | . . . . . Average Corruption . | . . . . . Corruption Purged . | . . . . . Corruption Blocked . | . . . . . Overload Shots . | . . . . . Overflow Damage . | . . . . . Projectiles . | . . . . . Explosions . | . . . . . Melee . | . . . . . Knockbacks . | . . . . . Impact . | . . . . . Kinetic . | . . . . . Secondary . | . . . . . Self-Inflicted Damage . | . . . . . Shots . | . . . . . Rammed . | . . . . . Targets Rammed . | . . . . . Kicked . | . . . . . Crushed . | . . . . . Highest Temperature 153 | 30 37 153 52 . Average Temperature 33 | 14 14 63 14 . Received Heat Transfer 389 | 18 . 158 213 . Siege Activations . | . . . . . Martial Activations . | . . . . . Shielding Activations . | . . . . . Robots Disrupted . | . . . . . Combat Hostiles . | . . . . . Robots Corrupted . | . . . . . Combat Hostiles . | . . . . . Parts Fried . | . . . . . Impact Corruptions . | . . . . . Robots Melted . | . . . . . Combat Hostiles . | . . . . . Parts Melted 1 | . . 1 . . Heat Transferred 999 | 74 296 333 296 . Parts Sabotaged . | . . . . . Parts Stolen . | . . . . . Parts Stripped . | . . . . . Power Chain Reactions . | . . . . . Alert | -11 -10 -10 -9 -8 ------- Run | Yrd Mat Min Mat Mat Maximum Alert Level . | . . . . . Low Security (%) 100 | 100 100 100 100 100 Level 1 . | . . . . . Level 2 . | . . . . . Level 3 . | . . . . . Level 4 . | . . . . . Level 5 . | . . . . . High Security . | . . . . . Max Security . | . . . . . Peak Influence 197 | 20 70 60 197 70 Initial 70 | . 9 10 . 70 Average 42 | 2 32 11 108 63 Influence Increases 569 | 25 77 140 327 . Destroy 0b10 Robot/C 360 | 20 60 120 160 . Destroy 0b10 Robot/NC 10 | 5 5 . . . Destroy Leader 82 | . 12 20 50 . Disable Machine 30 | . . . 30 . Destroy Structure 42 | . . . 42 . Partial Spotted 15 | . . . 15 . Lose Combat Pursuer 30 | . . . 30 . Influence Decreases 519 | 10 65 167 160 117 Entered New Map 120 | . 6 17 . 97 Time Decay 359 | 10 59 120 150 20 Lost Part 40 | . . 30 10 . Squads Dispatched 1 | . . . 1 . Investigation 1 | . . . 1 . Extermination . | . . . . . Reinforcement . | . . . . . Assault . | . . . . . Garrison . | . . . . . Intercept . | . . . . . Searches Triggered . | . . . . . Construction Impeded . | . . . . . Haulers Reinforced . | . . . . . Active Scanning Responses . | . . . . . Cargo Convoy Interrupts . | . . . . . Stealth | -11 -10 -10 -9 -8 --------- Run | Yrd Mat Min Mat Mat Distress Signals 1 | . . . 1 . Communications Jammed . | . . . . . Distress Signals . | . . . . . Times Spotted 29 | 1 6 8 14 . Peak Tracking Total 5 | 1 3 3 5 . Tactical Retreats 1 | . . . 1 . Traps | -11 -10 -10 -9 -8 ------- Run | Yrd Mat Min Mat Mat Traps Triggered . | . . . . . Indirectly . | . . . . . Trap Hack Attempts . | . . . . . Triggered . | . . . . . Disarmed . | . . . . . Reprogrammed . | . . . . . Reused . | . . . . . Traps Extracted . | . . . . . Installed 1 | . . . 1 . Triggered . | . . . . . Most Traps Carried 4 | . . 4 3 . Machines | -11 -10 -10 -9 -8 ---------- Run | Yrd Mat Min Mat Mat Machines Disabled 2 | . . . 2 . Max in Single Turn 1 | . . . 1 . Machines Repaired . | . . . . . Machines Dismantled . | . . . . . Machines Sabotaged . | . . . . . Overloaded Fab Kills . | . . . . . Hacking | -11 -10 -10 -9 -8 --------- Run | Yrd Mat Min Mat Mat Machines Accessed 2 | . 1 . 1 . Terminals 1 | . 1 . . . Fabricators . | . . . . . Repair Stations . | . . . . . Recycling Units . | . . . . . Scanalyzers 1 | . . . 1 . Garrison Access . | . . . . . Total Hacks 11 | . 3 . 8 . Successful 8 | . 2 . 6 . Failed 3 | . 1 . 2 . Catastrophic . | . . . . . Database Lockouts . | . . . . . Manual . | . . . . . Terminals 3 | . 3 . . . Fabricators . | . . . . . Repair Stations . | . . . . . Recycling Units . | . . . . . Scanalyzers 8 | . . . 8 . Garrison Access . | . . . . . Terminal Hacks 2 | . 2 . . . Record 2 | . 2 . . . Fabricator Hacks . | . . . . . Repair Station Hacks . | . . . . . Recycling Unit Hacks . | . . . . . Scanalyzer 6 | . . . 6 . Insert Component 3 | . . . 3 . Analyze 3 | . . . 3 . Garrison Access Hacks . | . . . . . Unauthorized Hacks . | . . . . . Terminals . | . . . . . Fabricators . | . . . . . Repair Stations . | . . . . . Recycling Units . | . . . . . Scanalyzers . | . . . . . Garrison Access . | . . . . . Data Cores Recovered . | . . . . . Used . | . . . . . Hacking Detections 2 | . 1 . 1 . Full Trace Events 2 | . 1 . 1 . Feedback Events . | . . . . . Feedback Blocked . | . . . . . Robot Schematics Acquired . | . . . . . Robots Built . | . . . . . Authchips . | . . . . . Time . | . . . . . Total Robot Build Rating . | . . . . . Part Schematics Acquired 2 | . . . 2 . Parts Built . | . . . . . Authchips . | . . . . . Time . | . . . . . Total Part Build Rating . | . . . . . Parts Repaired . | . . . . . Time . | . . . . . Parts Recycled . | . . . . . Recycled Matter . | . . . . . Retrieved Matter . | . . . . . Retrieved Components . | . . . . . Parts Scanalyzed 3 | . . . 3 . Part Schematics Acquired 2 | . . . 2 . Parts Damaged . | . . . . . Bothacking | -11 -10 -10 -9 -8 ------------ Run | Yrd Mat Min Mat Mat Used RIF Installer . | . . . . . Robots Hacked . | . . . . . Non-combat . | . . . . . Combat . | . . . . . Robot Hacks Applied . | . . . . . Relay Couplers Released . | . . . . . Fabnet Peak Effective % . | . . . . . Robots Rewired . | . . . . . Allies Hacked . | . . . . . Hacks Repelled . | . . . . . Allies | -11 -10 -10 -9 -8 -------- Run | Yrd Mat Min Mat Mat Total Allies . | . . . . . Largest Group . | . . . . . Highest-Rated Group . | . . . . . Highest-Rated Ally . | . . . . . Total Orders . | . . . . . Ally Attacks . | . . . . . Total Damage . | . . . . . Kills . | . . . . . Allies Corrupted . | . . . . . Allies Melted . | . . . . . Intel | -11 -10 -10 -9 -8 ------- Run | Yrd Mat Min Mat Mat Active Infowar (turns) 945 | . 76 499 326 44 Sensors 254 | . 76 178 . . Terrain 691 | . . 321 326 44 Robot Analysis Total . | . . . . . Derelict Logs Recovered 1 | . . 1 . . Drone Launches . | . . . . . Drone Recoveries . | . . . . . Exploration | -11 -10 -10 -9 -8 ------------- Run | Yrd Mat Min Mat Mat Turns Passed 1175 | 96 150 559 326 44 Spaces Moved 801 | 87 101 440 150 23 Core 28 | 28 . . . . Treads . | . . . . . Legs 481 | . . 308 150 23 Wheels 292 | 59 101 132 . . Hover . | . . . . . Flight . | . . . . . Fastest Speed 50 | 50 80 80 120 120 Average Speed 105 | 70 80 108 124 171 Slowest Speed 190 | 80 80 120 190 190 Overloaded Moves . | . . . . . Propulsion Burnouts . | . . . . . Robots Hopped . | . . . . . Potential Cave-ins 7 | . . 7 . . Cave-ins Triggered . | . . . . . Exploration Rate (%) 28 | 6 20 92 16 7 Regions Visited 4 Branch Regions 1 Pre-discovered Areas 1 | . . 1 . . Known Exits Taken . | . . . . . Unknown Exits Taken 4 | 1 1 1 1 . Scrap Searched 1 | . . 1 . . Spaces Dug . | . . . . . Terrain Destroyed 50 | . . . 50 . Melee . | . . . . . Projectile . | . . . . . AOE 50 | . . . 50 . Terrain Rammed . | . . . . . Walls Destroyed . | . . . . . Machines Disabled . | . . . . . Actions | -11 -10 -10 -9 -8 --------- Run | Yrd Mat Min Mat Mat Total 1006 | 113 149 488 229 27 Wait 28 | . 27 1 . . Move 797 | 86 100 439 149 23 Hop . | . . . . . Pick Up 39 | 12 5 10 11 1 Fast Attach 3 | . 1 . 1 1 Attach 17 | 6 1 4 5 1 Detach 4 | . . . 4 . Swap 19 | 3 . 5 11 . Drop 24 | 2 4 6 11 1 Fire 74 | 4 11 23 36 . Melee . | . . . . . Ram . | . . . . . Kick . | . . . . . Crush . | . . . . . Escape Stasis . | . . . . . Rewire . | . . . . . Trap 1 | . . . 1 . Miscellaneous . | . . . . . Route ------- -11/Scrapyard -10/Materials -10/Mines (discovered 2 exits: *Mat x2) -9/Materials -8/Materials History --------- Turn | Location | Event 2 | -11/Scrapyard | Met Revision 17 65 | -11/Scrapyard | Discovered new exit (range 8) 97 | -11/Scrapyard | Entered Materials 165 | -10/Materials | Discovered new exit (range 12) 247 | -10/Materials | Entered Mines 261 | -10/Mines | Learned location of Storage (-8) 291 | -10/Mines | Learned Materials garrison access intel 314 | -10/Mines | Build established: Mutant 325 | -10/Mines | Assembled infested the area 330 | -10/Mines | Assisted by a Guerilla fighting off Assembled 424 | -10/Mines | Lost 3 parts (1n1u1w) 572 | -10/Mines | Discovered new exit (range 6) 747 | -10/Mines | Build established: Scavenger-Mutant 749 | -10/Mines | Found a hidden stash of uninstalled traps 783 | -10/Mines | Discovered new exit (range 9) 790 | -10/Mines | Received a Rocket Launcher from a helpful Derelict 806 | -10/Mines | Entered Materials 806 | -9/Materials | Evolved 2 slots: Power x1, Utility x1 1128 | -9/Materials | Discovered new exit (range 3) 1132 | -9/Materials | Entered another Materials area 1132 | -8/Materials | Evolved 2 slots: Power x1, Weapon x1 1133 | -8/Materials | Loaded intel: 1 garrison access location 1176 | -8/Materials | Self-destructed Last Messages --------------- U-05 Engineer builds a Door. Ion Engine destroyed. Acquired 19 matter. EXIT=FOUND PARAMETERS=POWER+1,WEAPON+1 LOCATION=UNKNOWN GOAL=ESCAPE Thematically, traveling to another map via stairs or doorway is not an instant process. The transition abstracts away an implied amount of uneventful corridors along the way, during which any pursuers were lost and it is too dangerous to backtrack without being caught. Loading Materials garrison access intel (x1)... T-07 Excavator is excavating. Dropped Rocket Launcher. Acquired Prototype Energy Cannon. Acquired Rocket Launcher. K-01 Serf collects debris. Map ----- +----------------------------------------------------+ | ?????????????????????????????????????????????????? | | ?????????????????????????????????????????????????? | | ?????????????????????????????????????????????????? | | ?????????????????????????????????????????????????? | | ?????????????????????????????????????????????????? | | ?????????????????????????????????????????????????? | | ?????????????????????????????????????????????????? | | ?????????????????????????????????????????????????? | | ?????????????????????????????????????????????????? | | ?????????????????????????????????????????????????? | | ???????????????????????###???????????????????????? | | ??????????????????????? ###????????????????????? | | ??????????????????????? ????????????????????? | | ????????????? ??????? ????????????????????? | | ???????????? #?????? ?????? ?????????????? | | ????????????# #?????? "????? "?????????????? | | ????????????# #??????# """"?? ""?????????????? | | ????????????# #??????# """"" """????????????? | | ????????????# #??????# """"" """????????????? | | ????????????+ ???#??# """ """ ??????????? | | ????????????# #??????# ??????????? | | ????????????# #??????# ^ ?????????? | | ???????????## ######## ?????????? | | ???????????# k ????????? | | ???????????# ????????? | | ?????"?????+ r @ ????????? | | ???? ??????# ????????? | | ???????????# ! ######### #?????????? | | ? ?????????# #?????????????????????? | | ???????????# """ """ #?????????????????????? | | ?????####### """ """ #???????? ????????????? | | ?????# """ """ #?????????????????????? | | ?????# #?????????????????????? | | ?????# ! #?????????????????????? | | ?????###########+######+####?????????????????????? | | ????????????????????#????????????????????????????? | | ?????????????? ????????????#?????????????????????? | | ?????????????????????????????????????????????????? | | ?????????????????????????????????????????????????? | | ?????????????????????????????????????????????????? | | ?????????????????????????????????????????????????? | | ?????????????????????????????????????????????????? | | ?????????????????????????????????????????????????? | | ?????????????????????????????????????????????????? | | ?????????????????????????????????????????????????? | | ?????????????#???????????????????????????????????? | | ?????????????????????????????????????????????????? | | ?????????????????????????????????????????????????? | | ?????????????????????????????????????????????????? | | ?????????????????????????????????????????????????? | +----------------------------------------------------+ Best States ------------- Heat Dissipation 50 Energy Generation 15 Energy Capacity 400 Matter Stores 381 Matter Capacity 500 Sight Range 16 Robot Scan Range 14 Terrain Scan Range 14 Terrain Scan Density 10 Armor Coverage 150 Evasion (%) 55 Item Schematics ----------------- Rocket Launcher | -9/Materials | Scanalyzed Hcp. Matter Pod | -9/Materials | Scanalyzed Robot Schematics ------------------ None Fabricated ------------ Nothing Repaired ---------- Nothing Alien Tech Used ----------------- None Achievements -------------- Crack Shot I Survived The Infestation One Hack Too Far Risk Taker Challenges ------------ None Game ------ Seed PlasmaWeldingScrapsphere Manual? 0 Play Time 00:39:07 Cumulative 0.6 hours Start 2025.07.10 @ 20:12:36 End 2025.07.10 @ 20:52:40 Sessions 1 Manual Loads 0 Difficulty Rogue Special Mode None Game No. 1 Rogue 1 Adventurer 0 Explorer 0 Win Type - Total 0 Types 0/0/0/0/0/0/0/0/0/0 Lore% 0 Gallery% 1 Achievement% 1 Wizard Run 0 Options --------- Layout 1 ASCII 0 Keyboard 0 Movement Mouse Keybinds 0 Fullscreen 1 Font 24/Terminus Map View 50x35 Zoom Use 0% Tactical HUD 0 Map Filters NONE Filters NONE Steam 1 RUN: 78ad1e81-ad65-415d-b04d-fe4239ee23f9